[Event "Late-Titled-Tuesday-Blitz-September-26-2023"]
[Site "Chess.com"]
[Date "2023.09.26"]
[Round "8"]
[White "elcala"]
[Black "K_alena13"]
[Result "1-0"]
[WhiteElo "1739"]
[BlackElo "2071"]
[TimeControl "180+1"]
[EndTime "15:26:55 PDT"]
[Termination "elcala won on time"]

1. d4 {[%clk 0:03:00.9]} 1... d5 {[%clk 0:02:58.8]} 2. Nf3 {[%clk 0:03:01.1]}
2... Nf6 {[%clk 0:02:58.2]} 3. Bf4 {[%clk 0:03:01]} 3... e6 {[%clk 0:02:57.5]}
4. e3 {[%clk 0:03:01.5]} 4... c5 {[%clk 0:02:57.4]} 5. c3 {[%clk 0:03:01.1]}
5... Nc6 {[%clk 0:02:56.4]} 6. Nbd2 {[%clk 0:02:59.9]} 6... Bd6 {[%clk
0:02:55.5]} 7. Ne5 {[%clk 0:02:58.9]} 7... O-O {[%clk 0:02:52.3]} 8. Ndf3 {[%clk
0:02:58.9]} 8... Qc7 {[%clk 0:02:47.1]} 9. Be2 {[%clk 0:02:56.4]} 9... b6 {[%clk
0:02:45.5]} 10. h3 {[%clk 0:02:52.7]} 10... Ne4 {[%clk 0:02:42.5]} 11. O-O
{[%clk 0:02:47.8]} 11... f6 {[%clk 0:02:36.5]} 12. Nxc6 {[%clk 0:02:47.3]} 12...
Qxc6 {[%clk 0:02:37.1]} 13. Bxd6 {[%clk 0:02:47]} 13... Qxd6 {[%clk 0:02:36.2]}
14. Nd2 {[%clk 0:02:46.3]} 14... Ng5 {[%clk 0:02:25.1]} 15. Nf3 {[%clk
0:02:40.5]} 15... Nf7 {[%clk 0:02:21.4]} 16. Qc2 {[%clk 0:02:30]} 16... Bb7
{[%clk 0:02:19.8]} 17. Bd3 {[%clk 0:02:28.7]} 17... f5 {[%clk 0:02:11.4]} 18.
Rac1 {[%clk 0:02:04.6]} 18... c4 {[%clk 0:02:06.7]} 19. Be2 {[%clk 0:02:00.5]}
19... b5 {[%clk 0:02:06.6]} 20. b3 {[%clk 0:01:58.5]} 20... Bc6 {[%clk
0:02:00.1]} 21. b4 {[%clk 0:01:52.9]} 21... a5 {[%clk 0:01:57.4]} 22. a3 {[%clk
0:01:52.5]} 22... axb4 {[%clk 0:01:54.9]} 23. axb4 {[%clk 0:01:53.4]} 23... Ra3
{[%clk 0:01:52.8]} 24. Ra1 {[%clk 0:01:52.5]} 24... Rfa8 {[%clk 0:01:52.6]} 25.
Qb2 {[%clk 0:01:50.5]} 25... R3a7 {[%clk 0:01:24.6]} 26. Rxa7 {[%clk 0:01:46.8]}
26... Rxa7 {[%clk 0:01:25.5]} 27. Ra1 {[%clk 0:01:46.7]} 27... Qb8 {[%clk
0:01:22.5]} 28. Rxa7 {[%clk 0:01:30.3]} 28... Qxa7 {[%clk 0:01:23.4]} 29. Bd1
{[%clk 0:01:29.5]} 29... Qa6 {[%clk 0:01:17.7]} 30. Bc2 {[%clk 0:01:21.4]} 30...
h6 {[%clk 0:01:17.4]} 31. Nd2 {[%clk 0:01:19.3]} 31... Nd6 {[%clk 0:01:15.6]}
32. f4 {[%clk 0:01:17.1]} 32... Ne4 {[%clk 0:01:13.6]} 33. Nxe4 {[%clk
0:01:15.9]} 33... fxe4 {[%clk 0:01:11.9]} 34. Bb1 {[%clk 0:01:13.7]} 34... Be8
{[%clk 0:01:11]} 35. Qa2 {[%clk 0:01:11.6]} 35... Qxa2 {[%clk 0:01:10.5]} 36.
Bxa2 {[%clk 0:01:12.5]} 36... Kf7 {[%clk 0:01:10.9]} 37. g3 {[%clk 0:01:03.5]}
37... Kf6 {[%clk 0:01:08.9]} 38. h4 {[%clk 0:01:02.3]} 38... g5 {[%clk
0:01:07.3]} 39. hxg5+ {[%clk 0:01:01.1]} 39... hxg5 {[%clk 0:01:08.2]} 40. Kf2
{[%clk 0:00:59.3]} 40... Kf5 {[%clk 0:01:06.6]} 41. Bb1 {[%clk 0:00:56.8]} 41...
Kg4 {[%clk 0:01:04.4]} 42. Bc2 {[%clk 0:00:54.5]} 42... Bf7 {[%clk 0:01:03.8]}
43. Bd1+ {[%clk 0:00:53.5]} 43... Kf5 {[%clk 0:01:01.5]} 44. Be2 {[%clk
0:00:52.9]} 44... Bg6 {[%clk 0:00:56.7]} 45. Bd1 {[%clk 0:00:51.6]} 45... Bf7
{[%clk 0:00:54.7]} 46. Be2 {[%clk 0:00:51.2]} 46... Kg6 {[%clk 0:00:53.5]} 47.
Bd1 {[%clk 0:00:49.4]} 47... Kh6 {[%clk 0:00:52]} 48. Bg4 {[%clk 0:00:47.5]}
48... Kg6 {[%clk 0:00:50.8]} 49. Bd1 {[%clk 0:00:46.9]} 49... Kf6 {[%clk
0:00:51.1]} 50. Bg4 {[%clk 0:00:46.3]} 50... Bg6 {[%clk 0:00:50.3]} 51. Bd1
{[%clk 0:00:45.5]} 51... Bf5 {[%clk 0:00:50.4]} 52. Be2 {[%clk 0:00:45]} 52...
Bh7 {[%clk 0:00:45.9]} 53. Bg4 {[%clk 0:00:44.5]} 53... Bf5 {[%clk 0:00:45.9]}
54. Bh5 {[%clk 0:00:42.5]} 54... Bh7 {[%clk 0:00:43.9]} 55. Be8 {[%clk
0:00:41.6]} 55... gxf4 {[%clk 0:00:37.9]} 56. gxf4 {[%clk 0:00:40.8]} 56... Ke7
{[%clk 0:00:38.1]} 57. Bxb5 {[%clk 0:00:39.8]} 57... Kd6 {[%clk 0:00:38.6]} 58.
Ba4 {[%clk 0:00:39.2]} 58... Bf5 {[%clk 0:00:37.3]} 59. Kg3 {[%clk 0:00:34.8]}
59... Kc7 {[%clk 0:00:36.2]} 60. Kh4 {[%clk 0:00:34.4]} 60... Kd6 {[%clk
0:00:34.8]} 61. Kg5 {[%clk 0:00:34]} 61... Bh3 {[%clk 0:00:34]} 62. Kf6 {[%clk
0:00:33.6]} 62... Bf5 {[%clk 0:00:33.2]} 63. Be8 {[%clk 0:00:29.4]} 63... Bg4
{[%clk 0:00:32.4]} 64. b5 {[%clk 0:00:28.5]} 64... Bf3 {[%clk 0:00:21.6]} 65. b6
{[%clk 0:00:27.1]} 65... Bg4 {[%clk 0:00:20]} 66. Bf7 {[%clk 0:00:23.8]} 66...
Kc6 {[%clk 0:00:17.8]} 67. Bxe6 {[%clk 0:00:23.3]} 67... Be2 {[%clk 0:00:17.4]}
68. b7 {[%clk 0:00:21.7]} 68... Kxb7 {[%clk 0:00:17.7]} 69. Bxd5+ {[%clk
0:00:22.2]} 69... Kc7 {[%clk 0:00:18]} 70. Bxe4 {[%clk 0:00:21.8]} 70... Kd6
{[%clk 0:00:18.5]} 71. f5 {[%clk 0:00:21.3]} 71... Bg4 {[%clk 0:00:17.8]} 72.
Kg6 {[%clk 0:00:20.4]} 72... Ke7 {[%clk 0:00:14.5]} 73. f6+ {[%clk 0:00:20.1]}
73... Kf8 {[%clk 0:00:14.7]} 74. Bd5 {[%clk 0:00:17.8]} 74... Be2 {[%clk
0:00:13.8]} 75. e4 {[%clk 0:00:14.8]} 75... Bd3 {[%clk 0:00:14]} 76. Kg5 {[%clk
0:00:12.8]} 76... Ke8 {[%clk 0:00:12.6]} 77. e5 {[%clk 0:00:13]} 77... Kf8
{[%clk 0:00:11.6]} 78. e6 {[%clk 0:00:12.6]} 78... Be2 {[%clk 0:00:06.7]} 79.
Bc6 {[%clk 0:00:10.4]} 79... Bh5 {[%clk 0:00:02.6]} 80. Kxh5 {[%clk 0:00:08.9]}
1-0

[Event "Late-Titled-Tuesday-Blitz-September-26-2023"]
[Site "Chess.com"]
[Date "2023.09.26"]
[Round "8"]
[White "Journey_to_GrandMaster_YT"]
[Black "ljm509"]
[Result "0-1"]
[WhiteElo "2588"]
[BlackElo "2361"]
[TimeControl "180+1"]
[EndTime "15:26:56 PDT"]
[Termination "ljm509 won by resignation"]

1. d4 {[%clk 0:03:00]} 1... Nf6 {[%clk 0:02:35]} 2. Nf3 {[%clk 0:02:59.7]} 2...
e6 {[%clk 0:02:34.4]} 3. c4 {[%clk 0:02:59.5]} 3... d5 {[%clk 0:02:34.8]} 4. Nc3
{[%clk 0:02:59.4]} 4... c5 {[%clk 0:02:35.3]} 5. cxd5 {[%clk 0:02:59.5]} 5...
cxd4 {[%clk 0:02:34.9]} 6. Qxd4 {[%clk 0:02:52.2]} 6... exd5 {[%clk 0:02:35.2]}
7. Bg5 {[%clk 0:02:45.2]} 7... Be7 {[%clk 0:02:34]} 8. e3 {[%clk 0:02:42.7]}
8... Nc6 {[%clk 0:02:33.1]} 9. Qd1 {[%clk 0:02:33.4]} 9... O-O {[%clk
0:02:27.6]} 10. Be2 {[%clk 0:02:31.5]} 10... h6 {[%clk 0:02:27]} 11. Bh4 {[%clk
0:02:28.1]} 11... Be6 {[%clk 0:02:22.4]} 12. O-O {[%clk 0:02:27.6]} 12... Qa5
{[%clk 0:02:20.3]} 13. Nb5 {[%clk 0:01:56.6]} 13... a6 {[%clk 0:02:14.2]} 14.
Nbd4 {[%clk 0:01:55.8]} 14... Rfe8 {[%clk 0:02:02.7]} 15. a3 {[%clk 0:01:51.7]}
15... Qb6 {[%clk 0:01:56.5]} 16. b4 {[%clk 0:01:49.3]} 16... Ne4 {[%clk
0:01:46.9]} 17. Bxe7 {[%clk 0:01:48.2]} 17... Rxe7 {[%clk 0:01:47]} 18. Rc1
{[%clk 0:01:39]} 18... Rc8 {[%clk 0:01:33.2]} 19. Qd3 {[%clk 0:01:23]} 19...
Ree8 {[%clk 0:01:28.5]} 20. h3 {[%clk 0:01:20.8]} 20... Bd7 {[%clk 0:01:16]} 21.
Nb3 {[%clk 0:01:18.6]} 21... Be6 {[%clk 0:01:02.1]} 22. Nc5 {[%clk 0:01:03]}
22... Rcd8 {[%clk 0:00:45.2]} 23. Nxe4 {[%clk 0:00:48.3]} 23... dxe4 {[%clk
0:00:44.9]} 24. Qxe4 {[%clk 0:00:48.8]} 24... Bxh3 {[%clk 0:00:40.5]} 25. Qf4
{[%clk 0:00:46.1]} 25... Be6 {[%clk 0:00:36.4]} 26. Rfd1 {[%clk 0:00:46.3]}
26... Rxd1+ {[%clk 0:00:32.2]} 27. Rxd1 {[%clk 0:00:47.2]} 27... Rd8 {[%clk
0:00:32.4]} 28. Rxd8+ {[%clk 0:00:44.1]} 28... Qxd8 {[%clk 0:00:32.3]} 29. Kh2
{[%clk 0:00:36.4]} 29... Qd7 {[%clk 0:00:25]} 30. Bc4 {[%clk 0:00:32.5]} 30...
Bxc4 {[%clk 0:00:24.2]} 31. Qxc4 {[%clk 0:00:32.4]} 31... Qd6+ {[%clk
0:00:23.5]} 32. g3 {[%clk 0:00:31.7]} 32... g6 {[%clk 0:00:20.5]} 33. Kg2 {[%clk
0:00:30.5]} 33... Kg7 {[%clk 0:00:17.8]} 34. Qc3+ {[%clk 0:00:24]} 34... Qf6
{[%clk 0:00:17]} 35. Qxf6+ {[%clk 0:00:20.8]} 35... Kxf6 {[%clk 0:00:17.9]} 36.
Nd2 {[%clk 0:00:20.6]} 36... Ke5 {[%clk 0:00:16.7]} 37. f4+ {[%clk 0:00:18.4]}
37... Kd5 {[%clk 0:00:16.1]} 38. Kf3 {[%clk 0:00:18.7]} 38... f5 {[%clk
0:00:16.2]} 39. Ke2 {[%clk 0:00:18.4]} 39... Na7 {[%clk 0:00:14.4]} 40. Kd3
{[%clk 0:00:16.1]} 40... Nb5 {[%clk 0:00:14.4]} 41. Nc4 {[%clk 0:00:14.7]} 41...
Nd6 {[%clk 0:00:13.5]} 42. Ne5 {[%clk 0:00:13.3]} 42... g5 {[%clk 0:00:13.7]}
43. Nf3 {[%clk 0:00:11.1]} 43... Ne4 {[%clk 0:00:13.3]} 44. fxg5 {[%clk
0:00:10.8]} 44... hxg5 {[%clk 0:00:13.9]} 45. a4 {[%clk 0:00:08.3]} 45... g4
{[%clk 0:00:14]} 46. Nh4 {[%clk 0:00:07.5]} 46... Nxg3 {[%clk 0:00:14.1]} 47.
Ng6 {[%clk 0:00:03.9]} 47... b5 {[%clk 0:00:10.9]} 48. a5 {[%clk 0:00:03.6]}
48... Ne4 {[%clk 0:00:10.1]} 49. Ne7+ {[%clk 0:00:03.5]} 49... Ke6 {[%clk
0:00:09.2]} 50. Nc6 {[%clk 0:00:02.7]} 50... g3 {[%clk 0:00:08.5]} 51. Nd4+
{[%clk 0:00:03]} 51... Ke5 {[%clk 0:00:08.3]} 52. Nf3+ {[%clk 0:00:03.4]} 52...
Kd5 {[%clk 0:00:07.7]} 53. Ne1 {[%clk 0:00:04]} 53... Nf2+ {[%clk 0:00:06.8]}
54. Ke2 {[%clk 0:00:04]} 54... Ne4 {[%clk 0:00:06.5]} 55. Kd3 {[%clk 0:00:04]}
55... Nf2+ {[%clk 0:00:04.9]} 56. Ke2 {[%clk 0:00:04.2]} 56... Ng4 {[%clk
0:00:05.8]} 57. Kd3 {[%clk 0:00:03.6]} 57... Ne5+ {[%clk 0:00:05.3]} 58. Ke2
{[%clk 0:00:02.8]} 58... Nc6 {[%clk 0:00:05.6]} 59. Nc2 {[%clk 0:00:02.8]} 59...
Kc4 {[%clk 0:00:05.2]} 60. Kf3 {[%clk 0:00:03.4]} 60... Kc3 {[%clk 0:00:05.2]}
61. Ne1 {[%clk 0:00:03.1]} 61... Kxb4 {[%clk 0:00:05.2]} 62. Kxg3 {[%clk
0:00:03.2]} 62... Kxa5 {[%clk 0:00:06.1]} 63. Kf4 {[%clk 0:00:03.6]} 63... Kb4
{[%clk 0:00:07]} 64. Kxf5 {[%clk 0:00:03.7]} 64... Kc3 {[%clk 0:00:07.6]} 65. e4
{[%clk 0:00:03.9]} 65... b4 {[%clk 0:00:08]} 66. Ng2 {[%clk 0:00:01.4]} 66... b3
{[%clk 0:00:08.1]} 67. Ne3 {[%clk 0:00:02]} 67... b2 {[%clk 0:00:07.3]} 68. Nd1+
{[%clk 0:00:02.5]} 68... Kc2 {[%clk 0:00:07.7]} 69. Nxb2 {[%clk 0:00:03.4]}
69... Kxb2 {[%clk 0:00:07.9]} 70. Ke6 {[%clk 0:00:04.3]} 70... Kc3 {[%clk
0:00:07.7]} 71. Kd6 {[%clk 0:00:04.8]} 71... Nd4 {[%clk 0:00:08.6]} 72. e5
{[%clk 0:00:05.1]} 72... a5 {[%clk 0:00:09.1]} 73. Kd5 {[%clk 0:00:03.6]} 73...
a4 {[%clk 0:00:09.3]} 74. Ke4 {[%clk 0:00:03.5]} 74... a3 {[%clk 0:00:09.4]} 75.
Ke3 {[%clk 0:00:03.7]} 75... a2 {[%clk 0:00:09.8]} 76. Ke4 {[%clk 0:00:03.5]}
76... a1=Q {[%clk 0:00:09.3]} 0-1

[Event "Late-Titled-Tuesday-Blitz-September-26-2023"]
[Site "Chess.com"]
[Date "2023.09.26"]
[Round "8"]
[White "jinxy2009"]
[Black "Danishcrown"]
[Result "0-1"]
[WhiteElo "2274"]
[BlackElo "2131"]
[TimeControl "180+1"]
[EndTime "15:27:08 PDT"]
[Termination "Danishcrown won by checkmate"]

1. e4 {[%clk 0:03:00.9]} 1... e6 {[%clk 0:02:59.4]} 2. d4 {[%clk 0:03:00.6]}
2... d5 {[%clk 0:03:00]} 3. e5 {[%clk 0:03:00.3]} 3... c5 {[%clk 0:03:00]} 4. c3
{[%clk 0:03:00.1]} 4... Nc6 {[%clk 0:03:00.6]} 5. Nf3 {[%clk 0:03:00.3]} 5...
Bd7 {[%clk 0:03:01]} 6. Be2 {[%clk 0:02:59.5]} 6... Nge7 {[%clk 0:03:00.3]} 7.
Na3 {[%clk 0:02:56.4]} 7... Ng6 {[%clk 0:02:54.8]} 8. Nc2 {[%clk 0:02:51.1]}
8... cxd4 {[%clk 0:02:53.1]} 9. cxd4 {[%clk 0:02:50.6]} 9... Be7 {[%clk
0:02:54]} 10. O-O {[%clk 0:02:47.6]} 10... O-O {[%clk 0:02:54.1]} 11. g3 {[%clk
0:02:48.1]} 11... f6 {[%clk 0:02:47.4]} 12. h4 {[%clk 0:02:41.7]} 12... Be8
{[%clk 0:01:58.9]} 13. h5 {[%clk 0:02:28.2]} 13... Nh8 {[%clk 0:01:57]} 14. h6
{[%clk 0:02:23.6]} 14... g5 {[%clk 0:01:50.9]} 15. Bd3 {[%clk 0:01:39.9]} 15...
Bh5 {[%clk 0:01:30.3]} 16. Be2 {[%clk 0:01:20.8]} 16... Bxf3 {[%clk 0:01:20.3]}
17. Bxf3 {[%clk 0:01:19.3]} 17... fxe5 {[%clk 0:01:19.9]} 18. dxe5 {[%clk
0:01:17.9]} 18... Nxe5 {[%clk 0:01:20.3]} 19. Be2 {[%clk 0:01:16.5]} 19... Nhg6
{[%clk 0:00:31.3]} 20. Nd4 {[%clk 0:01:10.2]} 20... Qb6 {[%clk 0:00:17.8]} 21.
Be3 {[%clk 0:00:22.5]} 21... Qd6 {[%clk 0:00:12.7]} 22. Rc1 {[%clk 0:00:20.2]}
22... a6 {[%clk 0:00:10.6]} 23. Bg4 {[%clk 0:00:19.7]} 23... Nxg4 {[%clk
0:00:08.4]} 24. Qxg4 {[%clk 0:00:20.6]} 24... Ne5 {[%clk 0:00:06.2]} 25. Qxe6+
{[%clk 0:00:19.6]} 25... Qxe6 {[%clk 0:00:05.1]} 26. Nxe6 {[%clk 0:00:20.5]}
26... Rfc8 {[%clk 0:00:04.6]} 27. Nxg5 {[%clk 0:00:19.7]} 27... Bxg5 {[%clk
0:00:04.6]} 28. Bxg5 {[%clk 0:00:19.9]} 28... Nf3+ {[%clk 0:00:05.3]} 29. Kg2
{[%clk 0:00:20.4]} 29... Nxg5 {[%clk 0:00:06.2]} 30. Rcd1 {[%clk 0:00:20.6]}
30... Rd8 {[%clk 0:00:05.4]} 31. Rfe1 {[%clk 0:00:20.8]} 31... Rd7 {[%clk
0:00:04.2]} 32. Re5 {[%clk 0:00:20.8]} 32... Nf7 {[%clk 0:00:04.1]} 33. Rexd5
{[%clk 0:00:21.2]} 33... Rxd5 {[%clk 0:00:04.3]} 34. Rxd5 {[%clk 0:00:21.6]}
34... Rd8 {[%clk 0:00:04.6]} 35. Rf5 {[%clk 0:00:17.6]} 35... Nxh6 {[%clk
0:00:04.1]} 36. Rf4 {[%clk 0:00:18.2]} 36... Kg7 {[%clk 0:00:03.8]} 37. Rc4
{[%clk 0:00:17.1]} 37... Rd7 {[%clk 0:00:04]} 38. Rc8 {[%clk 0:00:16.7]} 38...
Nf7 {[%clk 0:00:04.1]} 39. Rc3 {[%clk 0:00:16.7]} 39... Ne5 {[%clk 0:00:03.3]}
40. Rb3 {[%clk 0:00:16.2]} 40... Ng6 {[%clk 0:00:03.5]} 41. Rc3 {[%clk
0:00:16.3]} 41... Rf7 {[%clk 0:00:03.9]} 42. Rc8 {[%clk 0:00:14.9]} 42... h5
{[%clk 0:00:03.9]} 43. Rc4 {[%clk 0:00:14.5]} 43... Kh6 {[%clk 0:00:03.9]} 44.
f4 {[%clk 0:00:13.3]} 44... h4 {[%clk 0:00:03.5]} 45. f5 {[%clk 0:00:08.7]}
45... Rxf5 {[%clk 0:00:03]} 46. gxh4 {[%clk 0:00:09.3]} 46... Rf4 {[%clk
0:00:02.5]} 47. Rc7 {[%clk 0:00:08.5]} 47... Rxh4 {[%clk 0:00:02.3]} 48. Rxb7
{[%clk 0:00:08]} 48... Ra4 {[%clk 0:00:02.9]} 49. a3 {[%clk 0:00:07.6]} 49...
Ra5 {[%clk 0:00:03.1]} 50. Kf2 {[%clk 0:00:07.8]} 50... Kg5 {[%clk 0:00:03.6]}
51. Ke2 {[%clk 0:00:07.8]} 51... Kf5 {[%clk 0:00:04.2]} 52. Kd3 {[%clk
0:00:08.2]} 52... Ne5+ {[%clk 0:00:04.5]} 53. Kc3 {[%clk 0:00:08.7]} 53... Ke6
{[%clk 0:00:04.7]} 54. Rb6+ {[%clk 0:00:08.7]} 54... Kd5 {[%clk 0:00:04.2]} 55.
Rh6 {[%clk 0:00:08.8]} 55... Rc5+ {[%clk 0:00:04.1]} 56. Kb3 {[%clk 0:00:09.3]}
56... Nc6 {[%clk 0:00:03.8]} 57. Rh5+ {[%clk 0:00:09.3]} 57... Kd6 {[%clk
0:00:03.9]} 58. Rh6+ {[%clk 0:00:09.6]} 58... Kc7 {[%clk 0:00:04.3]} 59. Rh7+
{[%clk 0:00:08.9]} 59... Kb6 {[%clk 0:00:04.7]} 60. Rh6 {[%clk 0:00:09.8]} 60...
Rb5+ {[%clk 0:00:04.8]} 61. Kc3 {[%clk 0:00:10.1]} 61... Rd5 {[%clk 0:00:04.5]}
62. Kc2 {[%clk 0:00:10.1]} 62... Kb5 {[%clk 0:00:03]} 63. b3 {[%clk 0:00:09.5]}
63... Rc5+ {[%clk 0:00:03.3]} 64. Kb2 {[%clk 0:00:09.9]} 64... Re5 {[%clk
0:00:03.3]} 65. Rh4 {[%clk 0:00:09.8]} 65... Kb6 {[%clk 0:00:02.7]} 66. a4
{[%clk 0:00:10.1]} 66... Re2+ {[%clk 0:00:02.9]} 67. Ka3 {[%clk 0:00:10.6]}
67... Re3 {[%clk 0:00:03.8]} 68. Rh6 {[%clk 0:00:10]} 68... a5 {[%clk 0:00:04]}
69. Rh5 {[%clk 0:00:09.8]} 69... Rd3 {[%clk 0:00:03.2]} 70. Rb5+ {[%clk
0:00:09.5]} 70... Kc7 {[%clk 0:00:03.5]} 71. Rh5 {[%clk 0:00:10.3]} 71... Re3
{[%clk 0:00:03.3]} 72. Rh7+ {[%clk 0:00:10.2]} 72... Kd6 {[%clk 0:00:03.7]} 73.
Rh5 {[%clk 0:00:11.1]} 73... Re5 {[%clk 0:00:04]} 74. Rh6+ {[%clk 0:00:11.6]}
74... Kc5 {[%clk 0:00:04]} 75. Rh4 {[%clk 0:00:12]} 75... Nb4 {[%clk 0:00:02.6]}
76. Rc4+ {[%clk 0:00:11.3]} 76... Kb6 {[%clk 0:00:02.8]} 77. Rh4 {[%clk
0:00:12.2]} 77... Re2 {[%clk 0:00:02.8]} 78. Rh6+ {[%clk 0:00:12.4]} 78... Kc7
{[%clk 0:00:02.7]} 79. Rh7+ {[%clk 0:00:12.1]} 79... Kd6 {[%clk 0:00:03]} 80.
Rh6+ {[%clk 0:00:12.5]} 80... Kd5 {[%clk 0:00:03.3]} 81. Rh5+ {[%clk 0:00:13]}
81... Re5 {[%clk 0:00:03.1]} 82. Rxe5+ {[%clk 0:00:12.6]} 82... Kxe5 {[%clk
0:00:04]} 83. Kb2 {[%clk 0:00:12.9]} 83... Kd4 {[%clk 0:00:04.3]} 84. Ka3 {[%clk
0:00:12.3]} 84... Nc6 {[%clk 0:00:04.4]} 85. Kb2 {[%clk 0:00:13.2]} 85... Kd3
{[%clk 0:00:04.2]} 86. Ka3 {[%clk 0:00:14.1]} 86... Kc3 {[%clk 0:00:04.5]} 87.
Ka2 {[%clk 0:00:14.5]} 87... Kb4 {[%clk 0:00:04.9]} 88. Kb2 {[%clk 0:00:14.8]}
88... Nd4 {[%clk 0:00:05.8]} 89. Ka2 {[%clk 0:00:15.4]} 89... Nxb3 {[%clk
0:00:06.7]} 90. Kb2 {[%clk 0:00:16]} 90... Nc5 {[%clk 0:00:07.6]} 91. Ka2 {[%clk
0:00:16.9]} 91... Nxa4 {[%clk 0:00:08.3]} 92. Kb1 {[%clk 0:00:17.1]} 92... Nb6
{[%clk 0:00:09.2]} 93. Ka2 {[%clk 0:00:18]} 93... Nd7 {[%clk 0:00:09.7]} 94. Kb1
{[%clk 0:00:18.9]} 94... Nb8 {[%clk 0:00:10.4]} 95. Ka2 {[%clk 0:00:19.8]} 95...
Nc6 {[%clk 0:00:11.3]} 96. Kb1 {[%clk 0:00:20.7]} 96... a4 {[%clk 0:00:12.1]}
97. Ka2 {[%clk 0:00:21.6]} 97... a3 {[%clk 0:00:13]} 98. Kb1 {[%clk 0:00:22.5]}
98... Nd4 {[%clk 0:00:13.4]} 99. Ka2 {[%clk 0:00:23.4]} 99... Ka4 {[%clk
0:00:13.9]} 100. Kb1 {[%clk 0:00:24.3]} 100... Kb3 {[%clk 0:00:14.5]} 101. Ka1
{[%clk 0:00:24.6]} 101... Nc2+ {[%clk 0:00:14.7]} 102. Kb1 {[%clk 0:00:25.5]}
102... a2+ {[%clk 0:00:15.5]} 103. Kc1 {[%clk 0:00:26.4]} 103... Kc3 {[%clk
0:00:16.1]} 104. Kd1 {[%clk 0:00:25.6]} 104... Kd3 {[%clk 0:00:16.9]} 105. Kc1
{[%clk 0:00:25.9]} 105... a1=Q# {[%clk 0:00:17.8]} 0-1